[Event "Early-Titled-Tuesday-Blitz-August-29-2023"]
[Site "Chess.com"]
[Date "2023.08.29"]
[Round "4"]
[White "temiksmozg"]
[Black "Kaua18"]
[Result "0-1"]
[WhiteElo "2640"]
[BlackElo "2496"]
[TimeControl "180+1"]
[EndTime "8:39:54 PDT"]
[Termination "Kaua18 won by checkmate"]

1. e4 {[%clk 0:03:00.9]} 1... c5 {[%clk 0:02:38.2]} 2. Nf3 {[%clk 0:02:55.4]}
2... e6 {[%clk 0:02:38.6]} 3. g3 {[%clk 0:02:54.5]} 3... Nc6 {[%clk 0:02:29.8]}
4. Bg2 {[%clk 0:02:54.1]} 4... Nf6 {[%clk 0:02:30.5]} 5. Nc3 {[%clk 0:02:53.6]}
5... e5 {[%clk 0:02:30.8]} 6. O-O {[%clk 0:02:53]} 6... d6 {[%clk 0:02:30.7]} 7.
Re1 {[%clk 0:02:47.9]} 7... Be7 {[%clk 0:02:23.8]} 8. Nd5 {[%clk 0:02:44.9]}
8... O-O {[%clk 0:02:19.8]} 9. c3 {[%clk 0:02:40]} 9... Bg4 {[%clk 0:02:16.2]}
10. h3 {[%clk 0:02:33.5]} 10... Bxf3 {[%clk 0:02:09.5]} 11. Nxe7+ {[%clk
0:02:08.4]} 11... Qxe7 {[%clk 0:02:01.5]} 12. Qxf3 {[%clk 0:02:09.3]} 12... b6
{[%clk 0:01:56.5]} 13. d3 {[%clk 0:02:08.5]} 13... Ne8 {[%clk 0:01:52.7]} 14.
Be3 {[%clk 0:02:06.9]} 14... Nc7 {[%clk 0:01:53]} 15. Rad1 {[%clk 0:02:00]}
15... Ne6 {[%clk 0:01:49]} 16. Qe2 {[%clk 0:02:00]} 16... Kh8 {[%clk 0:01:34.2]}
17. Rf1 {[%clk 0:01:55.1]} 17... f6 {[%clk 0:01:33.2]} 18. f4 {[%clk 0:01:51.9]}
18... b5 {[%clk 0:01:32.6]} 19. f5 {[%clk 0:01:52]} 19... Nc7 {[%clk 0:01:30.8]}
20. d4 {[%clk 0:01:52.6]} 20... c4 {[%clk 0:01:24.8]} 21. g4 {[%clk 0:01:50]}
21... a5 {[%clk 0:01:23.6]} 22. h4 {[%clk 0:01:50.2]} 22... Rab8 {[%clk
0:01:14.8]} 23. g5 {[%clk 0:01:45.6]} 23... exd4 {[%clk 0:01:07.2]} 24. cxd4
{[%clk 0:01:43.1]} 24... Nb4 {[%clk 0:01:00.4]} 25. Bf3 {[%clk 0:01:11.9]} 25...
Rbe8 {[%clk 0:00:39.7]} 26. g6 {[%clk 0:01:11.7]} 26... d5 {[%clk 0:00:31.7]}
27. gxh7 {[%clk 0:01:11.8]} 27... dxe4 {[%clk 0:00:30.8]} 28. Bh5 {[%clk
0:01:11.9]} 28... Rd8 {[%clk 0:00:28]} 29. Bg6 {[%clk 0:01:09.6]} 29... Ncd5
{[%clk 0:00:28.2]} 30. h5 {[%clk 0:01:05.1]} 30... Nxe3 {[%clk 0:00:23.1]} 31.
Qxe3 {[%clk 0:01:05.4]} 31... Nc2 {[%clk 0:00:23.5]} 32. Qc3 {[%clk 0:01:03.9]}
32... e3 {[%clk 0:00:11.1]} 33. Rfe1 {[%clk 0:00:56.8]} 33... Qe4 {[%clk
0:00:10.8]} 34. d5 {[%clk 0:00:37.5]} 34... Qg4+ {[%clk 0:00:10.7]} 35. Kh2
{[%clk 0:00:29]} 35... Qh4+ {[%clk 0:00:10.7]} 36. Kg2 {[%clk 0:00:29.4]} 36...
Qg4+ {[%clk 0:00:11.1]} 37. Kh2 {[%clk 0:00:29.8]} 37... Qh4+ {[%clk 0:00:11.7]}
38. Kg2 {[%clk 0:00:30.4]} 38... Qe4+ {[%clk 0:00:12.2]} 39. Kg3 {[%clk
0:00:27]} 39... b4 {[%clk 0:00:12.4]} 40. Rd4 {[%clk 0:00:15.3]} 40... Nxd4
{[%clk 0:00:11.4]} 41. Qxe3 {[%clk 0:00:15.1]} 41... Qxe3+ {[%clk 0:00:09.3]}
42. Rxe3 {[%clk 0:00:16]} 42... Rxd5 {[%clk 0:00:09.8]} 43. Re7 {[%clk
0:00:16.3]} 43... Nxf5+ {[%clk 0:00:08.8]} 44. Bxf5 {[%clk 0:00:16.2]} 44...
Rxf5 {[%clk 0:00:09.7]} 45. Kg4 {[%clk 0:00:16.8]} 45... Rg5+ {[%clk 0:00:10.2]}
46. Kh4 {[%clk 0:00:17.3]} 46... Kxh7 {[%clk 0:00:11.1]} 47. Rc7 {[%clk
0:00:16.8]} 47... Re8 {[%clk 0:00:11.5]} 48. Rxc4 {[%clk 0:00:16.9]} 48... Ree5
{[%clk 0:00:11.9]} 49. a3 {[%clk 0:00:14.2]} 49... bxa3 {[%clk 0:00:12.1]} 50.
bxa3 {[%clk 0:00:15.1]} 50... Re1 {[%clk 0:00:12.5]} 51. Rc3 {[%clk 0:00:09.3]}
51... Rh1+ {[%clk 0:00:12.7]} 52. Rh3 {[%clk 0:00:10.2]} 52... Rxh3+ {[%clk
0:00:12.3]} 53. Kxh3 {[%clk 0:00:11.1]} 53... Rxh5+ {[%clk 0:00:13.2]} 54. Kg4
{[%clk 0:00:12]} 54... Rb5 {[%clk 0:00:13.9]} 55. a4 {[%clk 0:00:11.1]} 55...
Rb4+ {[%clk 0:00:13.9]} 56. Kh5 {[%clk 0:00:12]} 56... g6# {[%clk 0:00:13.9]}
0-1

[Event "Early-Titled-Tuesday-Blitz-August-29-2023"]
[Site "Chess.com"]
[Date "2023.08.29"]
[Round "4"]
[White "Chernobay_Artem"]
[Black "superfast64"]
[Result "1-0"]
[WhiteElo "2636"]
[BlackElo "2415"]
[TimeControl "180+1"]
[EndTime "8:39:54 PDT"]
[Termination "Chernobay_Artem won by checkmate"]

1. e4 {[%clk 0:02:59.6]} 1... c6 {[%clk 0:03:00.3]} 2. d4 {[%clk 0:02:58.3]}
2... d5 {[%clk 0:03:00.9]} 3. e5 {[%clk 0:02:58.7]} 3... g6 {[%clk 0:02:56.6]}
4. c4 {[%clk 0:02:52.9]} 4... Bg7 {[%clk 0:02:54.8]} 5. Nc3 {[%clk 0:02:52.1]}
5... h5 {[%clk 0:02:48.5]} 6. h3 {[%clk 0:02:44.4]} 6... Nh6 {[%clk 0:02:27.1]}
7. cxd5 {[%clk 0:02:42.4]} 7... cxd5 {[%clk 0:02:27]} 8. Bb5+ {[%clk 0:02:42.7]}
8... Nc6 {[%clk 0:02:21.5]} 9. Nge2 {[%clk 0:02:41.9]} 9... e6 {[%clk
0:02:17.5]} 10. O-O {[%clk 0:02:30]} 10... Bd7 {[%clk 0:02:11.5]} 11. b3 {[%clk
0:02:15.8]} 11... Rc8 {[%clk 0:02:02.8]} 12. a4 {[%clk 0:02:07.1]} 12... Qb6
{[%clk 0:01:48]} 13. Ba3 {[%clk 0:01:48.9]} 13... Bf8 {[%clk 0:01:37]} 14. Bxf8
{[%clk 0:01:36.8]} 14... Kxf8 {[%clk 0:01:37.9]} 15. a5 {[%clk 0:01:36.3]} 15...
Qd8 {[%clk 0:01:33.2]} 16. a6 {[%clk 0:01:35.4]} 16... b6 {[%clk 0:01:32.7]} 17.
Qd2 {[%clk 0:01:29.1]} 17... Na5 {[%clk 0:01:19.4]} 18. Rab1 {[%clk 0:01:18]}
18... Nf5 {[%clk 0:01:04.2]} 19. Rfc1 {[%clk 0:01:08.8]} 19... Kg7 {[%clk
0:00:56.7]} 20. Bd3 {[%clk 0:01:09]} 20... h4 {[%clk 0:00:46.6]} 21. Bxf5 {[%clk
0:01:07.2]} 21... gxf5 {[%clk 0:00:46.3]} 22. Nf4 {[%clk 0:01:06.7]} 22... Kf8
{[%clk 0:00:41.4]} 23. Nce2 {[%clk 0:00:55.9]} 23... Nc6 {[%clk 0:00:34.1]} 24.
Rc3 {[%clk 0:00:49]} 24... Ne7 {[%clk 0:00:31.7]} 25. Rbc1 {[%clk 0:00:47.2]}
25... Ng6 {[%clk 0:00:27.2]} 26. Rxc8 {[%clk 0:00:41.1]} 26... Bxc8 {[%clk
0:00:28.1]} 27. Nxg6+ {[%clk 0:00:38.2]} 27... fxg6 {[%clk 0:00:28.1]} 28. Rc6
{[%clk 0:00:32.9]} 28... Bd7 {[%clk 0:00:25.2]} 29. Nf4 {[%clk 0:00:28]} 29...
Kf7 {[%clk 0:00:16.6]} 30. Rd6 {[%clk 0:00:27.2]} 30... Qe7 {[%clk 0:00:16.8]}
31. Nd3 {[%clk 0:00:15.7]} 31... Rh5 {[%clk 0:00:14.6]} 32. Qc1 {[%clk
0:00:14.4]} 32... Be8 {[%clk 0:00:14.6]} 33. Qc8 {[%clk 0:00:13.6]} 33... Rg5
{[%clk 0:00:14.2]} 34. Nf4 {[%clk 0:00:13.3]} 34... b5 {[%clk 0:00:12.7]} 35.
Nxe6 {[%clk 0:00:12.6]} 35... Rh5 {[%clk 0:00:11]} 36. Nf4 {[%clk 0:00:11.8]}
36... Rh6 {[%clk 0:00:11]} 37. Nxd5 {[%clk 0:00:10.9]} 37... Qg5 {[%clk
0:00:11]} 38. Rf6+ {[%clk 0:00:10.3]} 38... Kg7 {[%clk 0:00:10.6]} 39. Qxe8
{[%clk 0:00:09.2]} 39... Qc1+ {[%clk 0:00:11.5]} 40. Kh2 {[%clk 0:00:09.3]}
40... Rh8 {[%clk 0:00:11.6]} 41. Qe7+ {[%clk 0:00:09.1]} 41... Kh6 {[%clk
0:00:12]} 42. Rxg6+ {[%clk 0:00:07.9]} 42... Kxg6 {[%clk 0:00:11.3]} 43. Qf6+
{[%clk 0:00:08]} 43... Kh7 {[%clk 0:00:11.9]} 44. Qf7+ {[%clk 0:00:07.7]} 44...
Kh6 {[%clk 0:00:12.5]} 45. Qf6+ {[%clk 0:00:05.6]} 45... Kh7 {[%clk 0:00:13.1]}
46. Qxf5+ {[%clk 0:00:06.1]} 46... Kh6 {[%clk 0:00:13.4]} 47. Qf6+ {[%clk
0:00:06.1]} 47... Kh7 {[%clk 0:00:12.7]} 48. Qf7+ {[%clk 0:00:06.3]} 48... Kh6
{[%clk 0:00:13.1]} 49. Ne3 {[%clk 0:00:07.2]} 49... Qb1 {[%clk 0:00:10.8]} 50.
Ng4+ {[%clk 0:00:05.7]} 50... Kg5 {[%clk 0:00:10.5]} 51. f4# {[%clk 0:00:06.4]}
1-0

[Event "Early-Titled-Tuesday-Blitz-August-29-2023"]
[Site "Chess.com"]
[Date "2023.08.29"]
[Round "4"]
[White "Virgo15"]
[Black "OparinGrigoriy"]
[Result "0-1"]
[WhiteElo "2759"]
[BlackElo "2976"]
[TimeControl "180+1"]
[EndTime "8:39:55 PDT"]
[Termination "OparinGrigoriy won on time"]

1. d4 {[%clk 0:03:00.9]} 1... Nf6 {[%clk 0:02:32.5]} 2. Bf4 {[%clk 0:02:57.5]}
2... d5 {[%clk 0:02:28.1]} 3. e3 {[%clk 0:02:57.6]} 3... Bf5 {[%clk 0:02:28.8]}
4. c4 {[%clk 0:02:57.1]} 4... e6 {[%clk 0:02:28.5]} 5. Nc3 {[%clk 0:02:57.3]}
5... Bd6 {[%clk 0:02:21.1]} 6. Bxd6 {[%clk 0:02:56.3]} 6... Qxd6 {[%clk
0:02:21.6]} 7. c5 {[%clk 0:02:56.3]} 7... Qe7 {[%clk 0:02:20.3]} 8. Nf3 {[%clk
0:02:56.8]} 8... O-O {[%clk 0:02:19.8]} 9. Ne5 {[%clk 0:02:55.5]} 9... Nbd7
{[%clk 0:02:17.7]} 10. f4 {[%clk 0:02:54.4]} 10... Nxe5 {[%clk 0:02:17.2]} 11.
fxe5 {[%clk 0:02:55.3]} 11... Ne4 {[%clk 0:02:17.1]} 12. Nxe4 {[%clk 0:02:54.3]}
12... Bxe4 {[%clk 0:02:18]} 13. Qd2 {[%clk 0:02:43.1]} 13... f6 {[%clk
0:02:15.1]} 14. exf6 {[%clk 0:02:40.1]} 14... Rxf6 {[%clk 0:02:14.6]} 15. Bd3
{[%clk 0:02:37.3]} 15... Raf8 {[%clk 0:02:11.2]} 16. Bxe4 {[%clk 0:02:34.5]}
16... dxe4 {[%clk 0:02:12.1]} 17. Qe2 {[%clk 0:02:12]} 17... Qd7 {[%clk
0:02:01.2]} 18. O-O-O {[%clk 0:02:01.4]} 18... Qd5 {[%clk 0:01:52.2]} 19. Rhf1
{[%clk 0:01:28.4]} 19... Qxa2 {[%clk 0:01:51.6]} 20. Rxf6 {[%clk 0:01:27.9]}
20... Rxf6 {[%clk 0:01:51.6]} 21. Kc2 {[%clk 0:01:23.4]} 21... a6 {[%clk
0:01:48.4]} 22. Rf1 {[%clk 0:01:08.9]} 22... Qd5 {[%clk 0:01:31.2]} 23. Rxf6
{[%clk 0:01:03]} 23... gxf6 {[%clk 0:01:32.1]} 24. Qg4+ {[%clk 0:01:03.4]} 24...
Kf7 {[%clk 0:01:32.5]} 25. b3 {[%clk 0:00:58]} 25... b6 {[%clk 0:01:15.9]} 26.
cxb6 {[%clk 0:00:51.8]} 26... cxb6 {[%clk 0:01:16.8]} 27. Qh4 {[%clk 0:00:51.2]}
27... h5 {[%clk 0:01:16.1]} 28. Qg3 {[%clk 0:00:44.8]} 28... Qg5 {[%clk
0:01:00.5]} 29. Qf2 {[%clk 0:00:24.2]} 29... a5 {[%clk 0:00:56]} 30. Kb2 {[%clk
0:00:24.2]} 30... Kg6 {[%clk 0:00:53.8]} 31. Ka3 {[%clk 0:00:19]} 31... b5
{[%clk 0:00:51.7]} 32. Qe2 {[%clk 0:00:18.3]} 32... Qd5 {[%clk 0:00:49.4]} 33.
Qf2 {[%clk 0:00:17.1]} 33... Qd6+ {[%clk 0:00:47.2]} 34. Kb2 {[%clk 0:00:16.6]}
34... Qxh2 {[%clk 0:00:46.1]} 35. Qc2 {[%clk 0:00:13.9]} 35... f5 {[%clk
0:00:39.6]} 36. Qc6 {[%clk 0:00:11.6]} 36... Qxg2+ {[%clk 0:00:39.4]} 37. Ka3
{[%clk 0:00:12]} 37... b4+ {[%clk 0:00:33.3]} 38. Ka4 {[%clk 0:00:12]} 38...
Qa2+ {[%clk 0:00:34]} 39. Kb5 {[%clk 0:00:12.6]} 39... Qxb3 {[%clk 0:00:34.8]}
40. Qe8+ {[%clk 0:00:11.5]} 40... Kg5 {[%clk 0:00:34.6]} 41. Qg8+ {[%clk
0:00:12]} 41... Kh4 {[%clk 0:00:34.4]} 42. Qg1 {[%clk 0:00:09.3]} 42... Qd5+
{[%clk 0:00:30.6]} 43. Ka4 {[%clk 0:00:09.7]} 43... Qa2+ {[%clk 0:00:22.4]} 44.
Kb5 {[%clk 0:00:09.2]} 44... b3 {[%clk 0:00:23]} 45. Kc5 {[%clk 0:00:05]} 45...
Qc2+ {[%clk 0:00:21]} 46. Kd6 {[%clk 0:00:04.7]} 46... b2 {[%clk 0:00:21.6]} 47.
Qh1+ {[%clk 0:00:02.1]} 47... Kg3 {[%clk 0:00:20.1]} 48. Qg1+ {[%clk 0:00:02.1]}
48... Kf3 {[%clk 0:00:20.5]} 49. Ke5 {[%clk 0:00:02.6]} 49... b1=Q {[%clk
0:00:15]} 50. Qg5 {[%clk 0:00:03]} 50... Qc7+ {[%clk 0:00:14.3]} 51. Kf6 {[%clk
0:00:02.4]} 51... Qd8+ {[%clk 0:00:14.3]} 0-1

[Event "Early-Titled-Tuesday-Blitz-August-29-2023"]
[Site "Chess.com"]
[Date "2023.08.29"]
[Round "4"]
[White "GasconJR"]
[Black "stasOR4ik"]
[Result "1-0"]
[WhiteElo "2668"]
[BlackElo "2486"]
[TimeControl "180+1"]
[EndTime "8:39:58 PDT"]
[Termination "GasconJR won on time"]

1. Nf3 {[%clk 0:03:00.9]} 1... d5 {[%clk 0:02:59.7]} 2. g3 {[%clk 0:02:59.8]}
2... Nf6 {[%clk 0:02:58.9]} 3. Bg2 {[%clk 0:02:59.2]} 3... c5 {[%clk 0:02:57.8]}
4. O-O {[%clk 0:02:57.8]} 4... Nc6 {[%clk 0:02:57.6]} 5. d4 {[%clk 0:02:57.5]}
5... e6 {[%clk 0:02:57.6]} 6. c4 {[%clk 0:02:56.7]} 6... dxc4 {[%clk 0:02:51.7]}
7. Qa4 {[%clk 0:02:48.5]} 7... Bd7 {[%clk 0:02:44]} 8. Qxc4 {[%clk 0:02:47.2]}
8... Na5 {[%clk 0:02:34.4]} 9. Qc2 {[%clk 0:02:42.5]} 9... Rc8 {[%clk
0:02:31.8]} 10. Nc3 {[%clk 0:02:32.8]} 10... Qb6 {[%clk 0:02:18.4]} 11. dxc5
{[%clk 0:02:18.2]} 11... Bxc5 {[%clk 0:02:17.8]} 12. Ne5 {[%clk 0:02:03.1]}
12... O-O {[%clk 0:01:51.7]} 13. Bg5 {[%clk 0:02:02.3]} 13... Be8 {[%clk
0:01:33.5]} 14. e3 {[%clk 0:01:40.8]} 14... Be7 {[%clk 0:01:06.1]} 15. Rac1
{[%clk 0:01:30]} 15... h6 {[%clk 0:01:05.5]} 16. Bxf6 {[%clk 0:00:55.5]} 16...
Bxf6 {[%clk 0:01:06.4]} 17. Nd3 {[%clk 0:00:18.7]} 17... Nc4 {[%clk 0:01:01.4]}
18. Ne4 {[%clk 0:00:13.2]} 18... Nd6 {[%clk 0:00:35.1]} 19. Nxf6+ {[%clk
0:00:10.2]} 19... gxf6 {[%clk 0:00:35.1]} 20. Qe2 {[%clk 0:00:09.7]} 20... Bb5
{[%clk 0:00:35.1]} 21. Qg4+ {[%clk 0:00:09]} 21... Kh7 {[%clk 0:00:28.9]} 22.
Rxc8 {[%clk 0:00:08.6]} 22... Rxc8 {[%clk 0:00:28.4]} 23. Rd1 {[%clk 0:00:07.7]}
23... Bxd3 {[%clk 0:00:19.8]} 24. Rxd3 {[%clk 0:00:07.1]} 24... Rc1+ {[%clk
0:00:20.2]} 25. Rd1 {[%clk 0:00:07.7]} 25... Qxb2 {[%clk 0:00:12.8]} 26. h4
{[%clk 0:00:03.5]} 26... Qb1 {[%clk 0:00:05.9]} 27. Rxc1 {[%clk 0:00:03.2]}
27... Qxc1+ {[%clk 0:00:06]} 28. Kh2 {[%clk 0:00:04.1]} 28... Qc5 {[%clk
0:00:05.1]} 29. Qe2 {[%clk 0:00:02.5]} 29... f5 {[%clk 0:00:05.2]} 30. Qd3
{[%clk 0:00:02.6]} 30... Kg7 {[%clk 0:00:04]} 31. a4 {[%clk 0:00:02.6]} 31... a6
{[%clk 0:00:04.1]} 32. Qb3 {[%clk 0:00:02.6]} 32... b5 {[%clk 0:00:04.2]} 33.
axb5 {[%clk 0:00:02.8]} 33... axb5 {[%clk 0:00:05.1]} 34. Qb2+ {[%clk
0:00:02.9]} 34... f6 {[%clk 0:00:04.9]} 35. Qa2 {[%clk 0:00:03.1]} 35... Qc7
{[%clk 0:00:05]} 36. Qxe6 {[%clk 0:00:03.1]} 36... Kg6 {[%clk 0:00:04.7]} 37.
h5+ {[%clk 0:00:03.1]} 37... Kg7 {[%clk 0:00:04.5]} 38. Bd5 {[%clk 0:00:02.2]}
38... Kf8 {[%clk 0:00:04.1]} 39. Qg8+ {[%clk 0:00:02.3]} 39... Ke7 {[%clk
0:00:04.5]} 40. Qg7+ {[%clk 0:00:02.9]} 40... Kd8 {[%clk 0:00:05.1]} 41. Qxh6
{[%clk 0:00:02.5]} 41... Qc2 {[%clk 0:00:04.9]} 42. Qxf6+ {[%clk 0:00:02.5]}
42... Kc7 {[%clk 0:00:04.4]} 43. Qe7+ {[%clk 0:00:03.1]} 43... Kb6 {[%clk
0:00:03.8]} 44. Qxd6+ {[%clk 0:00:03.6]} 44... Ka5 {[%clk 0:00:04.6]} 45. Qf4
{[%clk 0:00:03.2]} 45... b4 {[%clk 0:00:03]} 46. h6 {[%clk 0:00:03.4]} 46... b3
{[%clk 0:00:02.7]} 47. Bxb3 {[%clk 0:00:03.3]} 47... Qxb3 {[%clk 0:00:03.4]} 48.
h7 {[%clk 0:00:03.8]} 48... Qg8 {[%clk 0:00:01.3]} 49. hxg8=Q {[%clk 0:00:03.8]}
1-0

[Event "Early-Titled-Tuesday-Blitz-August-29-2023"]
[Site "Chess.com"]
[Date "2023.08.29"]
[Round "4"]
[White "GeorgiosSouleidis"]
[Black "enriquebutti"]
[Result "1-0"]
[WhiteElo "2565"]
[BlackElo "2240"]
[TimeControl "180+1"]
[EndTime "8:40:03 PDT"]
[Termination "GeorgiosSouleidis won by resignation"]

1. e4 {[%clk 0:02:37]} 1... c5 {[%clk 0:02:59.5]} 2. Nf3 {[%clk 0:02:36.8]} 2...
d6 {[%clk 0:02:59.2]} 3. Bc4 {[%clk 0:02:34.8]} 3... e6 {[%clk 0:02:58.6]} 4.
O-O {[%clk 0:02:34.5]} 4... Nf6 {[%clk 0:02:58]} 5. Re1 {[%clk 0:02:34]} 5...
Be7 {[%clk 0:02:57.5]} 6. Bf1 {[%clk 0:02:31.1]} 6... O-O {[%clk 0:02:55.6]} 7.
c3 {[%clk 0:02:31.4]} 7... Nc6 {[%clk 0:02:51.7]} 8. d4 {[%clk 0:02:31.6]} 8...
cxd4 {[%clk 0:02:51.1]} 9. cxd4 {[%clk 0:02:32.5]} 9... d5 {[%clk 0:02:50.9]}
10. e5 {[%clk 0:02:33.1]} 10... Ne4 {[%clk 0:02:50.4]} 11. Nbd2 {[%clk
0:02:33.1]} 11... f5 {[%clk 0:02:42.8]} 12. exf6 {[%clk 0:02:29]} 12... Nxf6
{[%clk 0:02:41.6]} 13. Nb3 {[%clk 0:02:25.6]} 13... Bd6 {[%clk 0:02:37.5]} 14.
Bg5 {[%clk 0:02:24]} 14... Qc7 {[%clk 0:02:33.4]} 15. Bd3 {[%clk 0:02:08.1]}
15... Bf4 {[%clk 0:02:09.9]} 16. Bxf4 {[%clk 0:02:01.6]} 16... Qxf4 {[%clk
0:02:09.1]} 17. Qc1 {[%clk 0:01:59]} 17... Qd6 {[%clk 0:02:03.2]} 18. Qc5 {[%clk
0:01:36.9]} 18... Qd8 {[%clk 0:01:54.2]} 19. a3 {[%clk 0:01:23.1]} 19... Nh5
{[%clk 0:01:44.8]} 20. Ne5 {[%clk 0:01:13]} 20... Nxe5 {[%clk 0:01:37.3]} 21.
Rxe5 {[%clk 0:01:13.9]} 21... Nf4 {[%clk 0:01:36.3]} 22. Qc2 {[%clk 0:01:02.3]}
22... g6 {[%clk 0:01:27]} 23. Rae1 {[%clk 0:01:01.8]} 23... Qf6 {[%clk
0:01:24.4]} 24. Bf1 {[%clk 0:00:46]} 24... Bd7 {[%clk 0:01:15.2]} 25. g3 {[%clk
0:00:44]} 25... Nh5 {[%clk 0:01:13.5]} 26. Nc5 {[%clk 0:00:42.1]} 26... Rac8
{[%clk 0:01:02.5]} 27. Qd2 {[%clk 0:00:33.4]} 27... Rxc5 {[%clk 0:00:46.8]} 28.
dxc5 {[%clk 0:00:33.4]} 28... Ng7 {[%clk 0:00:47.2]} 29. b4 {[%clk 0:00:32.1]}
29... a6 {[%clk 0:00:45.7]} 30. Bg2 {[%clk 0:00:27.9]} 30... Bc6 {[%clk
0:00:45]} 31. R1e2 {[%clk 0:00:18.3]} 31... Rd8 {[%clk 0:00:43.9]} 32. Qg5
{[%clk 0:00:15.6]} 32... Qxg5 {[%clk 0:00:36.9]} 33. Rxg5 {[%clk 0:00:16.5]}
33... d4 {[%clk 0:00:36.7]} 34. Bxc6 {[%clk 0:00:16.4]} 34... bxc6 {[%clk
0:00:37.6]} 35. Rge5 {[%clk 0:00:16.6]} 35... Kf7 {[%clk 0:00:36.2]} 36. g4
{[%clk 0:00:14.7]} 36... h6 {[%clk 0:00:29.6]} 37. Rd2 {[%clk 0:00:13.7]} 37...
Rd5 {[%clk 0:00:24]} 38. Rxd5 {[%clk 0:00:09.7]} 38... exd5 {[%clk 0:00:23.7]}
39. Rxd4 {[%clk 0:00:10.4]} 39... Ne6 {[%clk 0:00:24.3]} 40. Rd2 {[%clk
0:00:08.5]} 40... g5 {[%clk 0:00:22.6]} 41. Kg2 {[%clk 0:00:07.5]} 41... Kf6
{[%clk 0:00:22.3]} 42. Kf3 {[%clk 0:00:07.2]} 42... Nf4 {[%clk 0:00:21.7]} 43.
h4 {[%clk 0:00:05.6]} 43... Ke5 {[%clk 0:00:21.3]} 44. hxg5 {[%clk 0:00:04.5]}
44... hxg5 {[%clk 0:00:20.9]} 45. Rd1 {[%clk 0:00:05]} 45... d4 {[%clk
0:00:20.7]} 46. Rh1 {[%clk 0:00:03.1]} 46... Kd5 {[%clk 0:00:19.6]} 47. Rh7
{[%clk 0:00:02.8]} 47... Kc4 {[%clk 0:00:19.1]} 48. Ra7 {[%clk 0:00:02.3]} 48...
Kc3 {[%clk 0:00:18]} 49. Rxa6 {[%clk 0:00:01.1]} 49... d3 {[%clk 0:00:17.9]} 50.
Rxc6 {[%clk 0:00:01.5]} 50... d2 {[%clk 0:00:17.7]} 51. Rd6 {[%clk 0:00:01.6]}
51... Kc2 {[%clk 0:00:17.1]} 52. c6 {[%clk 0:00:01.7]} 52... d1=Q+ {[%clk
0:00:15.7]} 53. Rxd1 {[%clk 0:00:02.3]} 53... Kxd1 {[%clk 0:00:15.7]} 54. c7
{[%clk 0:00:03]} 1-0

[Event "Early-Titled-Tuesday-Blitz-August-29-2023"]
[Site "Chess.com"]
[Date "2023.08.29"]
[Round "4"]
[White "BillieKimbah"]
[Black "Arseniy_Nesterov"]
[Result "1/2-1/2"]
[WhiteElo "3029"]
[BlackElo "2870"]
[TimeControl "180+1"]
[EndTime "8:40:05 PDT"]
[Termination "Game drawn - insufficient material"]

1. d4 {[%clk 0:03:00.9]} 1... d5 {[%clk 0:02:59.7]} 2. Nf3 {[%clk 0:03:01.4]}
2... Nf6 {[%clk 0:02:59.5]} 3. Bg5 {[%clk 0:03:01.9]} 3... e6 {[%clk 0:02:58.1]}
4. e3 {[%clk 0:03:01.9]} 4... Be7 {[%clk 0:02:58]} 5. Nbd2 {[%clk 0:03:01.7]}
5... O-O {[%clk 0:02:57.8]} 6. Bd3 {[%clk 0:03:00.9]} 6... b6 {[%clk 0:02:57.6]}
7. Qe2 {[%clk 0:02:57.7]} 7... Bb7 {[%clk 0:02:56.8]} 8. Ne5 {[%clk 0:02:51]}
8... Nbd7 {[%clk 0:02:51.4]} 9. f4 {[%clk 0:02:48.6]} 9... Ne4 {[%clk
0:02:46.5]} 10. Bxe7 {[%clk 0:02:44.8]} 10... Qxe7 {[%clk 0:02:47.4]} 11. O-O
{[%clk 0:02:42.5]} 11... Nxd2 {[%clk 0:02:31.1]} 12. Qxd2 {[%clk 0:02:43.4]}
12... c5 {[%clk 0:02:23.9]} 13. c3 {[%clk 0:02:39]} 13... Nf6 {[%clk 0:02:16.6]}
14. Qf2 {[%clk 0:02:31.1]} 14... Ne4 {[%clk 0:02:14.1]} 15. Bxe4 {[%clk
0:02:25.1]} 15... dxe4 {[%clk 0:02:15]} 16. dxc5 {[%clk 0:02:17.9]} 16... f6
{[%clk 0:01:59.3]} 17. Nc4 {[%clk 0:01:18.8]} 17... Ba6 {[%clk 0:01:57.2]} 18.
b3 {[%clk 0:01:18.8]} 18... Qxc5 {[%clk 0:01:53.4]} 19. Rad1 {[%clk 0:01:14.2]}
19... Bxc4 {[%clk 0:01:46.6]} 20. bxc4 {[%clk 0:01:15.1]} 20... Qxc4 {[%clk
0:01:34.9]} 21. Rd4 {[%clk 0:01:15.2]} 21... Qxc3 {[%clk 0:01:31.5]} 22. Rxe4
{[%clk 0:01:15]} 22... Qc6 {[%clk 0:01:24.4]} 23. Rd4 {[%clk 0:01:12.7]} 23...
Rad8 {[%clk 0:01:18.3]} 24. Qd2 {[%clk 0:01:07]} 24... Rxd4 {[%clk 0:01:15.7]}
25. Qxd4 {[%clk 0:01:07.9]} 25... Rc8 {[%clk 0:01:09]} 26. Rd1 {[%clk
0:01:07.9]} 26... h5 {[%clk 0:01:08]} 27. h3 {[%clk 0:01:07.4]} 27... Kh7 {[%clk
0:00:50.9]} 28. Kh2 {[%clk 0:01:06.8]} 28... Qc5 {[%clk 0:00:41]} 29. Qe4+
{[%clk 0:01:06.2]} 29... Qf5 {[%clk 0:00:40.5]} 30. Qf3 {[%clk 0:00:53.7]} 30...
Rc2 {[%clk 0:00:36.4]} 31. e4 {[%clk 0:00:53.8]} 31... Qg6 {[%clk 0:00:35]} 32.
a3 {[%clk 0:00:51]} 32... f5 {[%clk 0:00:20.5]} 33. e5 {[%clk 0:00:40.6]} 33...
h4 {[%clk 0:00:20.3]} 34. Rd6 {[%clk 0:00:36.7]} 34... Ra2 {[%clk 0:00:16.9]}
35. Rd3 {[%clk 0:00:32.6]} 35... b5 {[%clk 0:00:16.2]} 36. Rd6 {[%clk
0:00:30.5]} 36... a5 {[%clk 0:00:11.9]} 37. Rb6 {[%clk 0:00:29.9]} 37... Qg3+
{[%clk 0:00:09]} 38. Qxg3 {[%clk 0:00:30.3]} 38... hxg3+ {[%clk 0:00:09.9]} 39.
Kxg3 {[%clk 0:00:31.2]} 39... Rxa3+ {[%clk 0:00:10.2]} 40. Kh4 {[%clk
0:00:31.9]} 40... Rb3 {[%clk 0:00:09.3]} 41. Rxe6 {[%clk 0:00:31.7]} 41... a4
{[%clk 0:00:09.7]} 42. Ra6 {[%clk 0:00:31.3]} 42... a3 {[%clk 0:00:09.8]} 43.
Kg5 {[%clk 0:00:24.3]} 43... b4 {[%clk 0:00:08.7]} 44. Ra4 {[%clk 0:00:24.5]}
44... Rb2 {[%clk 0:00:05.1]} 45. e6 {[%clk 0:00:24.9]} 45... a2 {[%clk
0:00:03.2]} 46. e7 {[%clk 0:00:24.3]} 46... Rxg2+ {[%clk 0:00:03.8]} 47. Kxf5
{[%clk 0:00:24.1]} 47... Re2 {[%clk 0:00:04.7]} 48. Rxa2 {[%clk 0:00:18.7]}
48... Rxe7 {[%clk 0:00:05.1]} 49. Rb2 {[%clk 0:00:18.9]} 49... Rb7 {[%clk
0:00:05.8]} 50. Rb3 {[%clk 0:00:19.4]} 50... Kh6 {[%clk 0:00:05.8]} 51. Kg4
{[%clk 0:00:19.8]} 51... Rb5 {[%clk 0:00:05.3]} 52. f5 {[%clk 0:00:19.6]} 52...
Rb6 {[%clk 0:00:05.2]} 53. Kh4 {[%clk 0:00:16.5]} 53... Rb8 {[%clk 0:00:05.1]}
54. Kg4 {[%clk 0:00:16.9]} 54... Rb5 {[%clk 0:00:05.8]} 55. Kh4 {[%clk
0:00:15.1]} 55... Rxf5 {[%clk 0:00:03.8]} 56. Rxb4 {[%clk 0:00:15]} 56... Rf4+
{[%clk 0:00:03.9]} 57. Rxf4 {[%clk 0:00:14.6]} 57... g5+ {[%clk 0:00:04.8]} 58.
Kg4 {[%clk 0:00:15.2]} 58... gxf4 {[%clk 0:00:05.7]} 59. Kxf4 {[%clk 0:00:15.9]}
59... Kh5 {[%clk 0:00:06.3]} 60. h4 {[%clk 0:00:16.8]} 60... Kxh4 {[%clk
0:00:06.9]} 1/2-1/2